bitfinex/quotes_SOLUSD_20250721
["timestamp","ask_amount","ask_price","bid_price","bid_amount"]
[1753134887300,5.81450429,196.29,196.25,36.66]
[1753134888619,12.35353367,196.29,196.25,36.66]
[1753134889290,12.35353367,196.29,196.26,36.02]
[1753134889985,0.06733122,196.27,196.26,36.02]
[1753134890593,0.06733122,196.27,196.26,36.68]
[1753134890794,0.06733122,196.27,196.26,36.02]
[1753134891498,0.06733122,196.27,196.26,36.68]
[1753134893812,0.06733122,196.27,196.26,48.31431114]
[1753134894893,0.06733122,196.27,196.26,48.82383931]
[1753134895899,0.06733122,196.27,196.26,42.28480993]
[1753134896111,0.06733122,196.27,196.26,48.82383931]
[1753134898197,0.06733122,196.27,196.26,42.28480993]
[1753134898517,0.06733122,196.27,196.26,48.82383931]
[1753134902321,0.06733122,196.27,196.26,48.76383931]
[1753134903111,0.06733122,196.27,196.26,46.40754364]
[1753134903315,0.00093589,196.27,196.26,46.40754364]
[1753134907433,0.06,196.33,196.29,26.0]
[1753134907623,0.06,196.33,196.32,30.18273371]
[1753134907935,0.06,196.33,196.32,40.12273371]
[1753134908117,0.06,196.35,196.34,26.0]
[1753134908313,0.06,196.35,196.34,66.63205427]
[1753134908514,0.06,196.35,196.34,67.31205427]
[1753134909213,0.06,196.35,196.34,69.65721268]
[1753134909537,0.06,196.35,196.34,74.75041834]
[1753134909731,1e-08,196.35,196.34,74.75041834]
[1753134910132,1e-08,196.35,196.34,91.53510231]
[1753134911945,1e-08,196.35,196.34,32.28252622]
[1753134912259,1e-08,196.35,196.34,40.99320566]
[1753134912414,1e-08,196.35,196.33,11.62131359]
[1753134912622,1e-08,196.35,196.32,0.68]
[1753134912623,1e-08,196.35,196.34,35.9]
[1753134914048,1e-08,196.35,196.32,11.621569]
[1753134914258,1e-08,196.35,196.33,36.58]
[1753134914743,1e-08,196.35,196.34,0.68]
[1753134915244,1e-08,196.35,196.33,35.9]
[1753134915451,1e-08,196.35,196.33,36.58]
[1753134915634,1e-08,196.35,196.33,35.9]
[1753134916033,1e-08,196.35,196.33,48.20123537]
[1753134917850,1e-08,196.35,196.34,5.77320566]
[1753134920433,1e-08,196.35,196.34,12.30109778]
[1753134928726,1e-08,196.35,196.31,5.773984]
[1753134928949,0.68000001,196.35,196.31,5.773984]
[1753134929152,0.68000001,196.35,196.32,35.8]
[1753134929656,1e-08,196.35,196.32,35.8]
[1753134929859,1e-08,196.35,196.32,40.89367815]
[1753134930656,1e-08,196.35,196.32,41.57367815]
[1753134934349,1e-08,196.35,196.32,40.92367815]
[1753134934552,1e-08,196.35,196.33,41.55342087]
[1753134935240,1e-08,196.35,196.34,35.78]
[1753134935578,0.68000001,196.35,196.34,35.78]
[1753134935872,1e-08,196.35,196.34,35.78]
[1753134937967,0.66000001,196.35,196.32,0.03]
[1753134938263,0.66000001,196.35,196.34,35.76]
[1753134942644,1e-08,196.35,196.34,35.76]
[1753134944544,1e-08,196.35,196.34,40.85320566]
[1753134946473,1e-08,196.35,196.34,41.51320566]
[1753134946640,1e-08,196.35,196.34,40.85320566]
[1753134947772,1e-08,196.35,196.34,41.51320566]
[1753134949165,1e-08,196.35,196.34,48.0430152]
[1753134949357,6.096,196.43,196.37,6.52980954]
[1753134949554,6.096,196.43,196.38,35.7]
[1753134949751,6.756,196.43,196.39,5.75190895]
[1753134950066,6.756,196.43,196.4,35.7]
[1753134950463,6.096,196.43,196.4,35.7]
[1753134950666,6.096,196.43,196.4,36.36]
[1753134952561,0.66,196.42,196.4,35.7]
[1753134952768,6.096,196.43,196.4,35.7]
[1753134952952,6.756,196.43,196.4,35.7]
[1753134953840,7.18980954,196.43,196.4,35.7]
[1753134954845,0.66,196.43,196.4,35.7]
[1753134955072,7.18980954,196.43,196.4,35.7]
[1753134955456,6.61638405,196.45,196.4,35.7]
[1753134955457,8.05580954,196.45,196.41,0.66]
[1753134955657,8.71580954,196.45,196.42,35.66]
[1753134956660,2.186,196.45,196.42,35.66]
[1753134956863,0.06,196.43,196.42,40.75110529]
[1753134958062,0.06,196.43,196.36,12.73114894]
[1753134958270,0.06,196.43,196.39,26.66]
[1753134958458,6.58980954,196.43,196.4,35.66]
[1753134958666,7.24980954,196.43,196.41,35.66]
[1753134960070,6.58980954,196.43,196.41,35.66]
[1753134960370,0.06,196.43,196.41,36.32]
[1753134963179,0.06,196.43,196.42,0.66]
[1753134965263,0.06,196.43,196.42,5.75113124]
[1753134969974,0.06,196.43,196.42,5.81113124]
[1753134974458,0.06,196.43,196.42,10.49737689]
[1753134974868,0.00037988,196.43,196.42,10.49737689]
[1753134975369,0.00037988,196.43,196.42,12.84414638]
[1753134976777,0.06,196.47,196.42,25.5719745]
[1753134976966,0.06,196.47,196.43,36.36]
[1753134977169,0.06,196.47,196.46,6.52390202]
[1753134977362,0.06,196.47,196.46,35.64]
[1753134977583,0.06,196.47,196.46,42.88390202]
[1753134978274,0.06,196.47,196.46,47.97399669]
[1753134979876,0.06,196.47,196.46,41.45009467]
[1753134983679,0.06,196.47,196.46,48.48300615]
[1753134983884,0.06,196.47,196.46,41.95910413]
[1753134984072,0.06,196.47,196.46,48.48300615]
[1753134984275,0.06,196.47,196.46,6.31910413]
[1753134984474,0.06,196.47,196.46,48.48300615]
[1753134986180,0.06,196.47,196.46,41.95910413]
[1753134989581,0.06,196.47,196.46,48.48300615]
[1753134990795,7.21390202,196.55,196.46,61.20824283]
[1753134991100,7.21390202,196.55,196.48,6.52390202]
[1753134991317,7.21390202,196.55,196.49,35.62]
[1753134991798,7.21390202,196.55,196.5,0.72]
[1753134991997,7.21390202,196.55,196.51,36.34]
[1753134992181,7.21390202,196.55,196.51,41.42865771]
[1753134993401,3.16260697,196.57,196.52,0.72]
[1753134993595,6.52390202,196.56,196.53,36.34]
[1753134993802,6.52390202,196.56,196.54,35.62]
[1753134994503,2.1429573,196.59,196.54,40.70784943]
[1753134994701,6.52390202,196.58,196.54,41.42784943]
[1753134995003,7.21390202,196.58,196.54,41.42784943]
[1753134995185,6.52390202,196.57,196.54,41.42784943]
[1753134997177,3.1619027,196.63,196.54,53.42790641]
[1753134997386,6.52390202,196.6,196.55,0.72]
[1753134997600,6.52390202,196.6,196.56,35.62]
[1753134997902,6.52390202,196.6,196.57,0.72]
[1753134998102,6.52390202,196.6,196.58,35.62]
[1753135000483,8.07280202,196.59,196.51,0.50887995]
[1753135000685,6.52390202,196.56,196.52,35.62]
[1753135000895,6.52390202,196.56,196.53,0.72]
[1753135001183,6.52390202,196.58,196.54,35.62]
[1753135001493,6.52390202,196.58,196.54,36.34]
[1753135001682,6.52390202,196.58,196.55,0.72]
[1753135001882,8.07280202,196.59,196.56,35.6]
[1753135002111,8.07280202,196.59,196.56,36.32]
[1753135002705,8.07280202,196.59,196.56,35.6]
[1753135002910,8.79280202,196.59,196.56,35.6]
[1753135004285,6.52390202,196.58,196.56,35.6]
[1753135005313,8.07280202,196.59,196.56,35.6]
[1753135006489,8.07280202,196.59,196.56,36.32]
[1753135009320,6.52390202,196.57,196.56,35.6]
[1753135009503,7.24390202,196.57,196.56,35.6]
[1753135009706,7.24390202,196.57,196.54,35.6]
[1753135009911,0.72,196.56,196.54,35.6]
[1753135010096,7.24390202,196.56,196.54,35.6]
[1753135010298,6.52390202,196.55,196.54,35.6]
[1753135010498,1.5489,196.59,196.54,36.32]
[1753135010721,6.52390202,196.58,196.55,0.72]
[1753135011127,7.24390202,196.57,196.54,35.6]
[1753135013836,7.14881452,196.59,196.54,35.6]
[1753135013837,0.06,196.6,196.55,0.72]
[1753135013992,0.06,196.6,196.54,40.68793354]
[1753135013993,6.52390202,196.59,196.54,40.68793354]
[1753135014188,6.52390202,196.59,196.55,0.72]
[1753135015093,6.52390202,196.59,196.56,0.72]
[1753135015394,6.52390202,196.59,196.57,35.6]
[1753135016019,6.52390202,196.59,196.57,36.32]
[1753135016696,6.52390202,196.59,196.57,35.6]
[1753135017206,0.78,196.6,196.57,35.6]
[1753135017423,6.52390202,196.59,196.57,35.6]
[1753135017630,0.78,196.6,196.57,35.6]
[1753135017631,0.06,196.6,196.58,0.72]
[1753135019003,0.06,196.6,196.59,0.72]
[1753135020418,0.06,196.6,196.59,5.80672872]
[1753135024032,5.58390202,196.62,196.59,5.80672872]
[1753135024201,5.58390202,196.62,196.6,35.6]
[1753135024598,5.58390202,196.62,196.6,36.32]
[1753135025032,5.58390202,196.62,196.6,35.6]
[1753135026143,6.52390202,196.61,196.6,35.6]
[1753135027511,7.24390202,196.61,196.6,35.6]
[1753135028314,6.52390202,196.61,196.6,35.6]
[1753135028509,2.64840552,196.65,196.6,36.29]
[1753135028737,6.52390202,196.62,196.6,36.29]
[1753135030053,6.52390202,196.61,196.6,36.29]
[1753135035248,4.17079198,196.61,196.6,36.29]
[1753135039023,7.73366537,196.65,196.6,36.29]
[1753135039232,4.17079198,196.62,196.61,0.69]
[1753135044456,4.17079198,196.62,196.6,35.6]
[1753135044631,4.17079198,196.61,196.6,35.6]
[1753135044828,4.17079198,196.61,196.6,36.29]
[1753135045546,4.17079198,196.61,196.6,35.6]
[1753135046651,4.17079198,196.61,196.6,35.63]
[1753135051255,4.17079198,196.61,196.6,36.32]
[1753135052262,4.17079198,196.61,196.6,35.63]
[1753135053453,4.17079198,196.61,196.6,36.32]
[1753135053864,24.72288397,196.6,196.56,0.03]
[1753135054066,4.17079198,196.57,196.48,36.27]
[1753135054236,4.17079198,196.49,196.46,0.69]
[1753135054441,4.17079198,196.48,196.46,36.27]
[1753135056036,4.17079198,196.48,196.44,0.69]
[1753135056257,4.84079198,196.48,196.45,35.58]
[1753135056456,0.5130573,196.52,196.47,0.72]
[1753135056659,4.17079198,196.48,196.47,0.72]
[1753135056849,0.5130573,196.52,196.47,0.03]
[1753135057049,4.17079198,196.48,196.47,0.03]
[1753135057257,6.52584843,196.48,196.47,0.03]
[1753135058038,7.22584843,196.48,196.47,0.03]
[1753135059447,6.52584843,196.49,196.47,0.72]
[1753135059651,6.52584843,196.5,196.48,0.69]
[1753135060766,6.52584843,196.51,196.49,36.27]
[1753135060970,6.52584843,196.51,196.5,0.69]
[1753135062056,6.52584843,196.51,196.5,5.77905852]
[1753135063771,6.52584843,196.51,196.5,5.08905852]
[1753135065450,6.52584843,196.51,196.49,40.66930592]
[1753135065774,6.52584843,196.5,196.49,40.66930592]
[1753135067162,6.52584843,196.51,196.49,40.66930592]
[1753135067873,6.52584843,196.51,196.5,0.69]
[1753135068862,6.52584843,196.51,196.49,40.66930592]
[1753135069056,6.52584843,196.51,196.49,41.35930592]
[1753135069674,6.52584843,196.51,196.49,41.38930592]
[1753135072578,7.22584843,196.5,196.49,0.03]
[1753135075178,12.31490695,196.5,196.49,0.03]
[1753135075683,12.82796425,196.5,196.49,0.03]
[1753135076478,12.31490695,196.5,196.49,0.03]
[1753135077362,12.82796425,196.5,196.49,0.03]
[1753135077878,19.35381268,196.5,196.49,0.03]
[1753135078567,36.13849665,196.5,196.49,0.03]
[1753135082476,42.78468397,196.48,196.47,0.03]
[1753135082675,49.8235897,196.48,196.47,0.03]
[1753135082985,50.5235897,196.48,196.47,0.03]
[1753135083489,55.61316624,196.48,196.47,0.03]
[1753135084186,91.19316624,196.48,196.47,0.03]
[1753135090070,84.66731781,196.48,196.47,0.03]
[1753135090270,91.19316624,196.48,196.47,0.03]
[1753135091690,0.5130573,196.48,196.47,0.03]
[1753135091996,49.8235897,196.48,196.47,0.03]
[1753135092171,26.0,196.45,196.43,0.03]
[1753135092369,23.8235897,196.44,196.43,0.03]
[1753135092679,24.5135897,196.44,196.43,0.03]
[1753135094393,29.6042026,196.44,196.43,0.03]
[1753135095795,32.25593928,196.44,196.43,0.03]
[1753135095993,34.74259633,196.44,196.43,0.03]
[1753135102100,36.38729633,196.44,196.43,0.03]
[1753135108094,29.83638083,196.43,196.41,0.03]
[1753135108291,91.92943813,196.42,196.41,0.03]
[1753135108492,49.8235897,196.42,196.41,0.03]
[1753135108687,85.4035897,196.42,196.41,0.03]
[1753135109709,90.49472094,196.42,196.41,0.03]
[1753135110809,71.71056937,196.42,196.41,0.03]
[1753135111003,16.78468397,196.41,196.39,0.03]
[1753135111208,30.52638083,196.41,196.39,0.03]
[1753135111587,84.8905324,196.41,196.39,0.03]
[1753135113007,89.98192285,196.41,196.39,0.03]
[1753135114892,96.50777128,196.41,196.39,0.03]
[1753135115093,97.19777128,196.41,196.39,0.03]
[1753135116013,99.85006548,196.41,196.39,0.03]
[1753135122317,99.16006548,196.41,196.39,0.03]
[1753135125421,107.01955497,196.41,196.39,0.03]
[1753135126709,107.71955497,196.41,196.39,0.03]
[1753135126903,107.01955497,196.41,196.39,0.03]
[1753135127106,16.78468397,196.4,196.39,0.03]
[1753135127419,38.90892762,196.4,196.39,0.03]
[1753135127614,38.90892762,196.4,196.35,0.03]
[1753135127813,20.96692124,196.36,196.35,0.03]
[1753135128016,26.05960814,196.36,196.35,0.03]
[1753135128208,26.57266544,196.36,196.35,0.03]
[1753135129233,28.92701537,196.36,196.35,0.03]
[1753135129724,28.92701537,196.36,196.35,0.74]
[1753135130901,28.92701537,196.36,196.35,0.03]
[1753135131604,28.92701537,196.36,196.35,0.74]
[1753135132422,0.5130573,196.39,196.35,0.74]
[1753135132603,6.5365872,196.38,196.35,5.83291529]
[1753135132801,6.5365872,196.38,196.35,0.03]
[1753135133008,6.5365872,196.38,196.36,0.71]
[1753135135324,6.5365872,196.38,196.36,0.74]
[1753135135834,6.5365872,196.37,196.36,0.74]
[1753135137004,0.5130573,196.39,196.37,1.5118]
[1753135137209,0.06,196.41,196.38,0.71]
[1753135138030,0.06,196.41,196.38,7.2465872]
[1753135138212,0.06,196.41,196.4,6.5365872]
[1753135138612,0.06,196.41,196.4,7.2465872]
[1753135139216,0.06,196.41,196.4,5.80164969]
[1753135141625,0.06,196.41,196.4,12.84740185]
[1753135143538,0.06,196.41,196.4,6.31081465]
[1753135143739,0.06,196.41,196.4,12.33823689]
[1753135143955,0.06,196.41,196.4,7.2465872]
[1753135144845,0.06,196.41,196.4,7.75575216]
[1753135146950,0.06,196.41,196.4,0.71]
[1753135147749,6.5965872,196.41,196.4,0.71]
[1753135147958,6.5965872,196.41,196.38,0.71]
[1753135148155,6.5365872,196.4,196.39,0.71]
[1753135148636,6.5365872,196.4,196.37,36.27]
[1753135148827,11.62849615,196.39,196.38,0.71]
[1753135149431,11.62849615,196.39,196.37,35.56]
[1753135149628,6.5365872,196.38,196.37,35.56]
[1753135149853,7.0496445,196.38,196.36,0.03]
[1753135150035,6.5365872,196.37,196.36,0.03]
[1753135150756,24.04127117,196.37,196.36,0.03]
[1753135150941,21.87737087,196.36,196.35,0.03]
[1753135151136,29.64701537,196.36,196.35,0.03]
[1753135155438,29.64701537,196.36,196.31,0.03]
[1753135155439,16.78468397,196.32,196.31,0.03]
[1753135155637,23.83432847,196.32,196.31,0.03]
[1753135155837,24.55432847,196.32,196.31,0.03]
[1753135156141,31.09091567,196.32,196.3,1e-08]
[1753135156346,31.09091567,196.32,196.28,0.03]
[1753135156347,26.0,196.29,196.28,0.03]
[1753135156550,33.0496445,196.29,196.28,0.03]
[1753135156752,33.7696445,196.29,196.28,0.03]
[1753135157148,16.78468397,196.28,196.26,0.03]
[1753135157350,16.78468397,196.28,196.24,0.03]
[1753135157351,16.78468397,196.26,196.24,0.03]
[1753135157550,7.0496445,196.25,196.24,0.03]
[1753135157734,7.7696445,196.25,196.24,0.03]
[1753135158142,24.55432847,196.25,196.24,0.03]
[1753135158960,24.55432847,196.25,196.24,1e-08]
[1753135159457,23.11328267,196.25,196.24,1e-08]
[1753135159649,29.64986987,196.25,196.24,1e-08]
[1753135162339,32.30440099,196.25,196.24,1e-08]
[1753135162840,62.84440099,196.25,196.24,1e-08]
[1753135163043,32.30440099,196.25,196.24,1e-08]
[1753135163669,42.78468397,196.21,196.19,0.2]
[1753135163869,16.78468397,196.19,196.18,0.03]
[1753135164161,23.32127117,196.19,196.18,0.03]
[1753135164370,24.04127117,196.19,196.18,0.03]
[1753135165243,29.13837092,196.19,196.18,0.03]
[1753135165860,21.88178372,196.19,196.18,0.03]
[1753135166041,28.41837092,196.19,196.18,0.03]
[1753135166359,63.99837092,196.19,196.18,0.03]
[1753135167849,21.88178372,196.19,196.18,0.03]
[1753135168081,63.99837092,196.19,196.18,0.03]
[1753135168567,64.51142822,196.19,196.18,0.03]
[1753135171969,0.5130573,196.19,196.18,0.74]
[1753135172160,6.5365872,196.19,196.18,0.74]
[1753135172771,7.0496445,196.19,196.18,0.74]
[1753135173774,6.5365872,196.19,196.18,0.74]
[1753135176969,0.5130573,196.2,196.18,0.74]
[1753135177177,6.5365872,196.21,196.18,0.74]
[1753135177962,6.5365872,196.2,196.18,0.74]
[1753135178356,0.5130573,196.23,196.18,0.03]
[1753135178357,6.5365872,196.19,196.18,0.03]
[1753135178875,6.5365872,196.19,196.18,0.69]
[1753135179176,7.0496445,196.19,196.18,0.69]
[1753135181581,12.14674425,196.19,196.18,0.69]
[1753135185183,12.14674425,196.19,196.18,0.03]
[1753135191389,29.62142822,196.19,196.18,0.03]
[1753135192792,65.20142822,196.19,196.18,0.03]
[1753135195584,58.66484102,196.19,196.18,0.03]
[1753135195895,65.20142822,196.19,196.18,0.03]
[1753135200288,65.20142822,196.19,196.18,1e-08]
[1753135200501,42.78468397,196.15,196.14,0.2]
[1753135200792,49.83432847,196.15,196.14,0.2]
[1753135200994,50.52432847,196.15,196.14,0.2]
[1753135201389,55.62246764,196.15,196.14,0.2]
[1753135201699,54.93246764,196.15,196.14,0.2]
[1753135201880,54.93246764,196.15,196.14,0.86]
[1753135202272,55.62246764,196.15,196.14,0.2]
[1753135203499,58.27805788,196.15,196.14,0.2]
[1753135203701,51.74147068,196.15,196.14,0.2]
[1753135203880,58.27805788,196.15,196.14,0.2]
[1753135206405,57.58805788,196.15,196.14,0.2]
[1753135206607,58.27805788,196.15,196.12,0.03]
[1753135206798,23.32127117,196.13,196.12,0.03]
[1753135207103,23.83432847,196.13,196.12,0.03]
[1753135207282,24.52432847,196.13,196.12,0.03]
[1753135207483,26.14972847,196.13,196.12,0.03]
[1753135208291,31.24838752,196.13,196.12,0.03]
[1753135211691,33.81646935,196.13,196.12,0.03]
[1753135212106,33.12646935,196.13,196.12,0.03]
[1753135212494,33.81646935,196.13,196.12,0.03]
[1753135214603,27.27988215,196.13,196.12,0.03]
[1753135214812,33.81646935,196.13,196.12,0.03]
[1753135217110,40.35305655,196.13,196.12,0.03]
[1753135219900,16.78468397,196.1,196.08,0.03]
[1753135220097,59.41432847,196.09,196.08,0.03]
[1753135220413,60.10432847,196.09,196.08,0.03]
[1753135221715,17.29774127,196.09,196.08,0.75]
[1753135221918,7.0496445,196.09,196.08,0.75]
[1753135222117,7.0496445,196.09,196.08,0.03]
[1753135222118,28.93402758,196.09,196.08,0.03]
[1753135222338,54.93402758,196.09,196.08,0.03]
[1753135223421,54.93402758,196.09,196.08,0.75]
[1753135223422,48.39744038,196.09,196.08,0.75]
[1753135223723,76.38575316,196.09,196.08,0.75]
[1753135224105,50.38575316,196.09,196.08,0.75]
[1753135227521,3.16946685,196.09,196.08,0.75]
[1753135227912,9.70605405,196.09,196.08,0.75]
[1753135229008,14.80575316,196.09,196.08,0.75]
[1753135231418,9.70605405,196.09,196.08,0.75]
[1753135232031,14.80575316,196.09,196.08,0.75]
[1753135233407,9.70605405,196.09,196.08,0.75]
[1753135234415,9.70605405,196.09,196.08,0.03]
[1753135234725,14.80575316,196.09,196.08,0.75]
[1753135234923,9.70605405,196.09,196.08,0.75]
[1753135237424,7.0496445,196.13,196.08,5.8499592]
[1753135237618,7.0496445,196.13,196.09,0.72]
[1753135237932,0.5130573,196.13,196.09,0.72]
[1753135238317,7.0496445,196.13,196.09,0.72]
[1753135239341,7.0496445,196.13,196.1,5.09943906]
[1753135239514,0.5130573,196.14,196.11,0.66]
[1753135239719,0.5130573,196.16,196.12,14.1906872]
[1753135240021,0.5130573,196.16,196.13,0.66]
[1753135240318,89.0130573,196.17,196.13,0.66]
[1753135240720,0.5730573,196.18,196.13,7.1965872]
[1753135240931,0.5730573,196.18,196.14,0.66]
[1753135241232,23.32127117,196.15,196.08,0.03]
[1753135241426,0.5130573,196.14,196.12,0.66]
[1753135241735,5.61146477,196.14,196.12,0.66]
[1753135242319,0.5130573,196.15,196.13,0.66]
[1753135243017,7.0496445,196.16,196.13,0.66]
[1753135244132,6.5365872,196.16,196.13,0.66]
[1753135245937,6.5365872,196.15,196.13,0.66]
[1753135246239,6.5965872,196.15,196.13,0.66]
[1753135247429,6.5965872,196.15,196.14,0.66]
[1753135248046,11.69478793,196.15,196.12,0.66]
[1753135248245,7.0496445,196.14,196.12,0.66]
[1753135248537,6.5365872,196.13,196.1,0.66]
[1753135248841,0.5130573,196.14,196.08,0.69]
[1753135248842,6.5365872,196.11,196.08,0.69]
[1753135249066,6.5365872,196.09,196.08,0.03]
[1753135249232,6.5365872,196.1,196.08,0.03]
[1753135249636,6.5365872,196.1,196.09,0.66]
[1753135250249,6.5365872,196.11,196.09,0.66]
[1753135250434,6.5365872,196.11,196.1,0.66]
[1753135250637,7.0496445,196.14,196.1,0.66]
[1753135251026,6.5365872,196.13,196.1,0.66]
[1753135251637,0.5130573,196.14,196.1,0.66]
[1753135251828,7.0496445,196.14,196.1,0.66]
[1753135253161,42.6496445,196.15,196.1,5.75933348]
[1753135253461,7.1096445,196.15,196.11,0.66]
[1753135255549,6.5365872,196.14,196.11,0.66]
[1753135255757,7.1096445,196.15,196.11,5.75916982]
[1753135255960,7.1096445,196.15,196.12,0.66]
[1753135256129,6.5965872,196.15,196.12,0.66]
[1753135256543,0.06,196.15,196.12,0.66]
[1753135257933,0.06,196.15,196.12,5.75867811]
[1753135258155,0.06,196.15,196.12,5.09867811]
[1753135258357,0.06,196.15,196.13,0.66]
[1753135259359,6.5365872,196.14,196.11,0.66]
[1753135259528,6.5365872,196.14,196.12,0.66]
[1753135260038,7.0496445,196.13,196.08,5.12972876]
[1753135260245,6.5365872,196.13,196.08,5.12972876]
[1753135260646,6.5365872,196.14,196.09,0.66]
[1753135261248,0.5730573,196.15,196.09,0.66]
[1753135261431,6.5365872,196.14,196.09,0.66]
[1753135262056,5.61311736,196.14,196.09,5.75961252]
[1753135262349,5.61311736,196.14,196.1,0.66]
[1753135262534,5.61311736,196.14,196.11,0.66]
[1753135263034,5.61311736,196.12,196.09,0.66]
[1753135263242,0.5130573,196.13,196.09,0.66]
[1753135263444,5.61311736,196.12,196.1,0.66]
[1753135264043,6.33167805,196.14,196.1,0.66]
[1753135264250,5.61311736,196.13,196.1,0.66]
[1753135264447,0.5130573,196.12,196.11,0.66]
[1753135265163,6.12617466,196.13,196.11,0.66]
[1753135265947,89.0130573,196.14,196.12,0.66]
[1753135266147,88.5,196.14,196.13,0.66]
[1753135268065,88.5,196.14,196.13,5.75865905]
[1753135268567,0.06,196.15,196.13,5.75865905]
[1753135268768,0.06,196.15,196.13,5.09865905]
[1753135268971,0.06,196.15,196.14,0.65]
[1753135270975,0.06,196.15,196.14,5.7483991]
[1753135276178,0.06,196.15,196.14,0.65]
[1753135276379,0.06,196.15,196.14,5.7483991]
[1753135278052,0.06,196.15,196.14,0.65]
[1753135278259,6.39311736,196.15,196.1,0.03]
[1753135278470,5.61311736,196.12,196.1,0.03]
[1753135278667,94.11311736,196.11,196.1,0.03]
[1753135278889,94.11311736,196.11,196.08,0.03]
[1753135278890,44.40468397,196.09,196.08,0.03]
[1753135279105,16.78468397,196.08,196.06,0.2]
[1753135279261,48.91085863,196.07,196.06,0.2]
[1753135279461,49.63085863,196.07,196.06,0.2]
[1753135279769,54.73107793,196.07,196.06,0.2]
[1753135280085,58.76279099,196.07,196.06,0.2]
[1753135281321,54.73107793,196.07,196.06,0.2]
[1753135283686,90.27107793,196.07,196.06,0.2]
[1753135284679,84.65796057,196.07,196.06,0.2]
[1753135284876,90.27107793,196.07,196.06,0.2]
[1753135287594,89.55107793,196.07,196.06,0.2]
[1753135289218,90.27107793,196.07,196.06,0.2]
[1753135292601,63.55107793,196.07,196.06,0.2]
[1753135293112,28.01107793,196.07,196.06,0.2]
[1753135293291,63.55107793,196.07,196.06,0.2]
[1753135293798,28.01107793,196.07,196.06,0.2]
[1753135294194,63.55107793,196.07,196.06,0.2]
[1753135295613,28.01107793,196.07,196.06,0.2]
[1753135295906,63.55107793,196.07,196.06,0.2]
[1753135297895,94.81107793,196.07,196.06,1e-08]
[1753135298095,53.58118397,196.06,196.04,0.03]
[1753135298290,58.45085863,196.05,196.04,0.03]
[1753135298509,59.12085863,196.05,196.04,0.03]
[1753135299412,64.22159823,196.05,196.04,0.03]
[1753135300116,94.81159823,196.05,196.04,0.03]
[1753135300306,59.27159823,196.05,196.04,0.03]
[1753135300510,94.81159823,196.05,196.04,0.03]
[1753135301510,47.37468397,196.03,196.02,1e-08]
[1753135301713,73.37468397,196.01,196.0,0.03]
[1753135301913,16.78468397,196.0,195.93,0.71]
[1753135302114,5.61311736,195.94,195.93,0.71]
[1753135303220,16.78468397,195.93,195.88,1.5956]
[1753135303412,5.61311736,195.89,195.86,0.81]
[1753135303613,5.61311736,195.87,195.86,0.81]
[1753135304503,16.78468397,195.87,195.86,0.1]
[1753135304714,22.91085863,195.87,195.86,0.81]
[1753135305837,28.01628569,195.87,195.86,0.1]
[1753135306651,17.29774127,195.87,195.86,0.1]
[1753135306799,58.45085863,195.87,195.86,0.1]
[1753135308102,52.83774127,195.87,195.86,0.1]
[1753135308308,58.45085863,195.87,195.86,0.1]
[1753135308623,66.09228856,195.87,195.86,0.1]
[1753135308997,24.9391712,195.87,195.86,0.1]
[1753135309319,61.0068615,195.87,195.86,0.1]
[1753135309928,66.11228856,195.87,195.86,0.1]
[1753135310442,61.0068615,195.87,195.86,0.1]
[1753135310816,25.4468615,195.87,195.86,0.81]
[1753135311025,61.0068615,195.87,195.86,0.81]